[Event "Presidents Day IM-Norm 2024"]
[Site "Santa Clara"]
[Date "2024.02.19"]
[Round "7.2"]
[White "Guo, Ethan"]
[Black "Raja Harshit"]
[Result "0-1"]
[ECO "B90"]
[WhiteElo "2099"]
[BlackElo "2508"]
[Annotator "TA"]
[PlyCount "72"]
[EventDate "2024.02.13"]
[EventType "tourn"]
[EventCountry "USA"]
[SourceTitle "playchess.com"]
[Source "ChessBase"]
[SourceQuality "1"]
[TimeControl "5400+30"]

{[%evp 9,72,14,36,4,9,6,27,19,28,29,30,11,8,19,0,11,25,0,0,0,-12,-17,-29,-20,-14,-22,0,-52,-58,-53,-43,-74,-50,-79,-84,-160,-47,-214,-222,-241,-237,-242,-236,-235,-231,-227,-229,-356,-357,-345,-349,-343,-316,-318,-311,-322,-316,-307,-287,-300,-302,-293,-286,-298,-285]} 1. e4 {[%emt 0:00:01]} c5 {[%emt 1:31:00]} 2. Nf3 d6 3. d4 cxd4 4. Nxd4 Nf6 5. Nc3 a6 6. Qd3 Nbd7 7. Be2 g6 8. Bg5 {White has an edge.} Bg7 9. O-O-O Qc7 10. Qe3 b5 11. Nd5 Nxd5 12. exd5 {[%csl Gg5][%cal Re3e7]} Nf6 $1 13. Bf3 h6 14. Bxf6 Bxf6 {[%emt 0:00:00]} 15. Kb1 {[%emt 0:06:35]} h5 {[%emt 0:00:00]} 16. Rhe1 {[%emt 0:08:38]} Kf8 17. h3 {[%emt 1:23:46]} h4 {[%emt 0:00:00]} 18. Bg4 {[%emt 0:00:00]} (18. a3 $11) 18... Bb7 $15 19. Qe4 {[%emt 0:01:00]} Kg7 {[%emt 0:09:00]} 20. Bf3 {[%emt 0:00:00]} Rac8 {[%emt 0:00:00]} 21. Bg4 {[%emt 0:00:00]} Rce8 {[%emt 0:01:00][%cal Oe7e6]} 22. f4 {[%emt 0:00:00]} ({Better is} 22. Bf3) 22... Qc4 ({Black should play} 22... e6 $1 $17 23. Bf3 (23. Bxe6 $2 fxe6 24. Nxe6+ Rxe6 $19) 23... Bxd5) 23. Bd7 $2 {[%emt 0:02:00] Loses the game.} (23. Be2 $15 Bxd5 (23... Qxd5 24. Qxd5 Bxd5 25. Nf5+ gxf5 26. Rxd5 $15) 24. Bxc4 Bxe4 25. Bxb5 (25. Bxf7 $2 Bxc2+ 26. Nxc2 Kxf7 $19) 25... Bxg2 26. Bxe8 Rxe8 27. Re3) 23... Bxd5 $19 24. Nf5+ {[%emt 0:00:00]} gxf5 {[%emt 0:00:00]} 25. Qxd5 {[%emt 0:00:00]} Qxd5 {[%emt 0:00:00]} 26. Rxd5 {[%emt 0:00:00]} Rd8 {[%emt 0:00:00]} 27. Bc6 {[%emt 0:00:00]} Rc8 {[%emt 0:00:00]} 28. Bb7 {[%emt 0:00:00] [#]} (28. Bd7 $142 Rcd8 29. Bc6) 28... Rb8 $1 {[%emt 0:00:00]} 29. Bxa6 {[%emt 0:00:00] [#]} Rb6 {[%emt 0:00:00] Black has a decisive advantage.} 30. Rxf5 {[%emt 0:00:00]} Rxa6 {[%emt 0:00:00]} 31. Rxb5 {[%emt 0:00:00]} Ra4 {[%emt 0:00:00]} 32. Rf1 {[%emt 0:00:00]} Re4 {[%emt 0:00:00]} 33. Rb3 {[%emt 0:00:00]} Rh6 {[%emt 0:00:00] Strongly threatening ...Rg6.} 34. g4 {[%emt 0:00:00]} hxg3 {[%emt 0:00:00]} 35. Rxg3+ {[%emt 0:00:00]} Rg6 {[%emt 0:00:00]} 36. Rgf3 {[%emt 0:00:00]} Rg2 {[%emt 0:07:30] Weighted Error Value: White=0.26 (precise) /Black=0.08 (flawless) .  Loses game:     	White=1     	---        Mistake:       	White=3     	Black=1      Inaccurate:     	White=2     	---        OK:         	White=12    	Black=13     Best:        	White=1     	Black=2      Strong:       	---       	Black=2} 0-1

[Event "Presidents Day IM-Norm 2024"]
[Site "Santa Clara"]
[Date "2024.02.19"]
[Round "7.3"]
[White "Liu, Patrick"]
[Black "Bansal, Advay"]
[Result "1/2-1/2"]
[ECO "D85"]
[WhiteElo "2130"]
[BlackElo "2253"]
[Annotator "ChessBase"]
[PlyCount "161"]
[EventDate "2024.02.13"]
[EventType "tourn"]
[EventCountry "USA"]
[SourceTitle "playchess.com"]
[Source "ChessBase"]
[SourceQuality "1"]
[TimeControl "5400+30"]

1. d4 {[%emt 0:00:01]} Nf6 {[%emt 0:00:09]} 2. c4 {[%emt 0:00:02]} g6 {[%emt 0:00:12]} 3. Nc3 {[%emt 0:00:02]} d5 {[%emt 0:00:10]} 4. cxd5 {[%emt 0:00:03]} Nxd5 {[%emt 0:00:10]} 5. e4 {[%emt 0:00:02]} Nxc3 {[%emt 0:00:10]} 6. bxc3 {[%emt 0:00:02]} Bg7 {[%emt 0:00:11]} 7. Rb1 {[%emt 0:00:12]} c5 {[%emt 0:00:33]} 8. Nf3 {[%emt 0:00:02]} O-O {[%emt 0:00:11]} 9. Be2 {[%emt 0:00:06]} Nc6 {[%emt 0:00:06]} 10. d5 {[%emt 0:00:05]} Ne5 {[%emt 0:00:05]} 11. Nxe5 {[%emt 0:00:06]} Bxe5 {[%emt 0:00:05]} 12. Qd2 {[%emt 0:00:31]} e6 {[%emt 0:00:08]} 13. f4 {[%emt 0:01:13]} Bc7 {[%emt 0:00:06]} 14. O-O {[%emt 0:00:22]} exd5 {[%emt 0:00:03]} 15. exd5 {[%emt 0:00:06]} Ba5 {[%emt 0:00:02]} 16. Rb5 {[%emt 0:00:53]} Re8 {[%emt 0:05:34]} 17. Bf3 {[%emt 0:12:37]} a6 {[%emt 0:08:53]} 18. Rb1 {[%emt 0:01:57]} Qf6 {[%emt 0:06:10]} 19. Bb2 {[%emt 0:04:28]} c4 {[%emt 0:03:33]} 20. Ba1 {[%emt 0:11:39]} Bb6+ {[%emt 0:16:35]} 21. Kh1 {[%emt 0:00:18]} Bf5 {[%emt 0:05:14]} 22. Rbe1 {[%emt 0:02:52]} Bd3 {[%emt 0:00:43]} 23. Be2 {[%emt 0:00:39]} Red8 {[%emt 0:02:15]} 24. f5 {[%emt 0:07:34]} Rxd5 {[%emt 0:03:09]} 25. fxg6 {[%emt 0:05:00]} Qxg6 {[%emt 0:00:08]} 26. Bxd3 {[%emt 0:00:09]} Rxd3 {[%emt 0:02:29]} 27. Qf4 {[%emt 0:00:15]} Bc5 {[%emt 0:14:55]} 28. Re4 {[%emt 0:09:42]} b5 {[%emt 0:03:02]} 29. Qh4 {[%emt 0:00:23]} f5 {[%emt 0:00:58]} 30. Re5 {[%emt 0:10:42]} Bd6 {[%emt 0:00:06]} 31. Re2 {[%emt 0:00:28]} Re8 {[%emt 0:11:18]} 32. Qe1 {[%emt 0:09:07]} Rxe2 {[%emt 0:01:02]} 33. Qxe2 {[%emt 0:00:03]} f4 {[%emt 0:02:25]} 34. Bb2 {[%emt 0:00:59]} h5 {[%emt 0:04:30]} 35. Qe1 {[%emt 0:02:04]} Re3 {[%emt 0:00:45]} 36. Qf2 {[%emt 0:00:17]} Qd3 {[%emt 0:02:59]} 37. Bc1 {[%emt 0:00:51]} Re4 {[%emt 0:02:01]} 38. Rg1 {[%emt 0:01:45]} Qd5 {[%emt 0:04:03]} 39. Rf1 {[%emt 0:00:30]} Qe5 {[%emt 0:01:18]} 40. Qh4 {[%emt 0:01:32]} Be7 {[%emt 0:00:16]} 41. Qf2 {[%emt 0:00:28]} Re2 {[%emt 0:01:28]} 42. Qf3 {[%emt 0:02:28]} Re1 {[%emt 0:01:14]} 43. Bd2 {[%emt 0:00:16]} Rxf1+ {[%emt 0:00:13]} 44. Qxf1 {[%emt 0:00:02]} Bd6 {[%emt 0:01:12]} 45. Qf3 {[%emt 0:00:07]} Qf5 {[%emt 0:01:29]} 46. Kg1 {[%emt 0:00:44]} Qb1+ {[%emt 0:00:39]} 47. Kf2 {[%emt 0:00:05]} Qf5 {[%emt 0:00:25]} 48. Ke2 {[%emt 0:00:34]} Qg4 {[%emt 0:00:20]} 49. Kf2 {[%emt 0:00:16]} Bc5+ {[%emt 0:00:35]} 50. Ke2 {[%emt 0:00:04]} Bd6 {[%emt 0:00:15]} 51. Kf2 {[%emt 0:00:01]} Qf5 {[%emt 0:00:40]} 52. Ke2 {[%emt 0:00:01]} Kf7 {[%emt 0:00:39]} 53. Qb7+ {[%emt 0:00:08]} Ke6 {[%emt 0:00:33]} 54. Qc8+ {[%emt 0:00:25]} Kf6 {[%emt 0:00:19]} 55. Qd8+ {[%emt 0:00:26]} Ke6 {[%emt 0:00:28]} 56. Qc8+ {[%emt 0:00:04]} Kf6 {[%emt 0:00:30]} 57. Qd8+ {[%emt 0:00:13]} Be7 {[%emt 0:00:02]} 58. Qb6+ {[%emt 0:03:09]} Kf7 {[%emt 0:00:56]} 59. Qc7 {[%emt 0:00:43]} Qd3+ {[%emt 0:00:31]} 60. Ke1 {[%emt 0:00:24]} Qe4+ {[%emt 0:00:45]} 61. Kf2 {[%emt 0:00:05]} Ke6 {[%emt 0:00:22]} 62. Qxf4 {[%emt 0:04:40]} Bc5+ {[%emt 0:00:30]} 63. Kf1 {[%emt 0:00:02]} Qxf4+ {[%emt 0:00:28]} 64. Bxf4 {[%emt 0:00:01]} Kf5 {[%emt 0:00:12]} 65. Bd2 {[%emt 0:01:03]} Ke4 {[%emt 0:00:43]} 66. Ke2 {[%emt 0:00:02]} Bg1 {[%emt 0:00:42]} 67. h3 {[%emt 0:00:11]} Bh2 {[%emt 0:00:18]} 68. Be1 {[%emt 0:00:05]} Be5 {[%emt 0:00:25]} 69. Kd2 {[%emt 0:00:41]} Bf4+ {[%emt 0:00:17]} 70. Kc2 {[%emt 0:00:44]} Bg5 {[%emt 0:00:21]} 71. Bf2 {[%emt 0:00:13]} Bf6 {[%emt 0:00:20]} 72. Be1 {[%emt 0:00:10]} Ke3 {[%emt 0:00:16]} 73. Bg3 {[%emt 0:00:25]} Ke2 {[%emt 0:00:28]} 74. Bf4 {[%emt 0:00:34]} Kf2 {[%emt 0:00:32]} 75. g4 {[%emt 0:00:05]} h4 {[%emt 0:00:15]} 76. g5 {[%emt 0:00:04]} Bg7 {[%emt 0:00:04]} 77. Bd6 {[%emt 0:00:23]} Kg2 {[%emt 0:01:30]} 78. Be7 {[%emt 0:00:01]} Kxh3 {[%emt 0:00:16]} 79. Bf6 {[%emt 0:00:05]} Bf8 {[%emt 0:00:05]} 80. g6 {[%emt 0:00:01]} Kg2 {[%emt 0:00:07]} 81. Bxh4 {[%emt 0:01:23]} 1/2-1/2

[Event "Presidents Day IM-Norm 2024"]
[Site "Santa Clara"]
[Date "2024.02.19"]
[Round "7.4"]
[White "Stevens, Adam B"]
[Black "Rodi, Luis Ernesto"]
[Result "1/2-1/2"]
[ECO "A80"]
[WhiteElo "1878"]
[BlackElo "2196"]
[Annotator "RC"]
[PlyCount "101"]
[EventDate "2024.02.13"]
[EventType "tourn"]
[EventCountry "USA"]
[SourceTitle "playchess.com"]
[Source "ChessBase"]
[SourceQuality "1"]
[TimeControl "5400+30"]

1. d4 {[%emt 0:00:01]} f5 {[%emt 0:12:13]} 2. Nc3 {[%emt 0:00:14]} d5 {[%emt 0:00:06]} 3. Bf4 {[%emt 0:00:32]} a6 {[%emt 0:00:27]} 4. Qd2 {[%emt 0:03:53]} e6 {[%emt 0:00:17]} 5. f3 {[%emt 0:03:17]} Nf6 {[%emt 0:00:29]} 6. e3 {[%emt 0:01:20]} c5 {[%emt 0:04:57]} 7. Nh3 {[%emt 0:01:44]} Nc6 {[%emt 0:00:14]} 8. Ne2 {[%emt 0:03:13]} h6 {[%emt 0:01:13]} 9. O-O-O {[%emt 0:03:08]} b5 {[%emt 0:00:56]} 10. Nf2 {[%emt 0:02:00]} Qb6 {[%emt 0:01:04]} 11. g4 {[%emt 0:00:56]} g5 {[%emt 0:19:18]} 12. Bg3 {[%emt 0:01:37]} cxd4 {[%emt 0:06:06]} 13. exd4 {[%emt 0:00:20]} f4 {[%emt 0:00:31]} 14. Nxf4 {[%emt 0:01:38]} gxf4 {[%emt 0:00:08]} 15. Bxf4 {[%emt 0:00:05]} Bd7 {[%emt 0:00:37]} 16. g5 {[%emt 0:01:55]} hxg5 {[%emt 0:00:17]} 17. Bxg5 {[%emt 0:00:04]} Be7 {[%emt 0:00:18]} 18. Bh3 {[%emt 0:00:34]} O-O-O {[%emt 0:00:51]} 19. Rhe1 {[%emt 0:00:15]} Rdg8 {[%emt 0:00:47]} 20. Bxe6 {[%emt 0:01:09]} Ne4 {[%emt 0:13:06]} 21. Bxd7+ {[%emt 0:01:38]} Kxd7 {[%emt 0:37:05]} 22. Nxe4 {[%emt 0:00:15]} dxe4 {[%emt 0:00:00]} 23. Bxe7 {[%emt 0:00:20]} Nxe7 {[%emt 0:00:00]} 24. fxe4 {[%emt 0:01:12]} Qh6 {[%emt 0:00:00]} 25. Re2 {[%emt 0:12:47]} Rg4 {[%emt 0:00:00]} 26. d5 {[%emt 0:01:44]} Qxd2+ {[%emt 0:00:00]} 27. Rdxd2 {[%emt 0:00:40]} Rhh4 {[%emt 0:00:00]} 28. Rd3 {[%emt 0:06:43]} Rxe4 {[%emt 0:00:00]} 29. Rxe4 {[%emt 0:00:05]} Rxe4 {[%emt 0:00:00]} 30. Ra3 {[%emt 0:00:01]} Nxd5 {[%emt 0:00:00]} 31. Rxa6 {[%emt 0:00:26]} Rh4 {[%emt 0:00:00]} 32. c3 {[%emt 0:03:32]} Nc7 {[%emt 0:00:00]} 33. Rg6 {[%emt 0:01:40]} Rxh2 {[%emt 0:00:00]} 34. Rg4 {[%emt 0:00:54]} Rh1+ {[%emt 0:00:00]} 35. Kc2 {[%emt 0:00:48]} Nd5 {[%emt 0:00:00]} 36. Rd4 {[%emt 0:00:11]} Kc6 {[%emt 0:00:00]} 37. a4 {[%emt 0:00:49]} Rh2+ {[%emt 0:00:00]} 38. Kb3 {[%emt 0:02:06]} Nb6 {[%emt 0:00:00]} 39. axb5+ {[%emt 0:00:08]} Kxb5 {[%emt 0:09:00]} 40. Rg4 {[%emt 0:00:58]} Nd7 {[%emt 0:00:00]} 41. Rb4+ {[%emt 0:00:52]} Kc6 {[%emt 0:00:00]} 42. Ka2 {[%emt 0:00:19]} Nb6 {[%emt 0:00:00]} 43. Kb3 {[%emt 0:00:35]} Rg2 {[%emt 0:00:00]} 44. Rh4 {[%emt 0:00:24]} Kc5 {[%emt 0:00:00]} 45. Rh5+ {[%emt 0:00:53]} Nd5 {[%emt 0:00:00]} 46. Re5 {[%emt 0:00:44]} Kd6 {[%emt 0:00:00]} 47. Re4 {[%emt 0:00:28]} Kc5 {[%emt 0:00:00]} 48. Re5 {[%emt 0:00:26]} Rh2 {[%emt 0:00:00]} 49. Rg5 {[%emt 0:00:26]} Kc6 {[%emt 0:00:00]} 50. Rg6+ {[%emt 0:00:11]} Kc5 {[%emt 0:00:00]} 51. Rg5 {[%emt 0:00:21]} 1/2-1/2

[Event "Presidents Day IM-Norm 2024"]
[Site "Santa Clara"]
[Date "2024.02.19"]
[Round "8.2"]
[White "Rodi, Luis Ernesto"]
[Black "Cardoso Cardoso, Jose Gabriel"]
[Result "1/2-1/2"]
[ECO "B90"]
[WhiteElo "2196"]
[BlackElo "2477"]
[Annotator "TA"]
[PlyCount "89"]
[EventDate "2024.02.13"]
[EventType "tourn"]
[EventCountry "USA"]
[SourceTitle "playchess.com"]
[Source "ChessBase"]
[SourceQuality "1"]
[TimeControl "5400+30"]

{[%evp 10,89,28,18,31,14,18,7,17,18,12,13,16,0,26,-25,-16,-34,-56,-58,0,0,0,-20,-22,-32,-32,-48,-47,-45,-37,-39,-36,-34,0,0,0,0,0,0,107,117,97,104,106,114,104,106,118,114,116,124,112,120,112,112,113,122,122,104,210,182,156,141,158,172,168,140,87,0,33,30,325,33,38,8,8,0,0,0,0,0]} 1. e4 {[%emt 0:03:05]} c5 {[%emt 0:00:14]} 2. Nc3 {[%emt 0:00:07]} d6 {[%emt 0:00:35]} 3. Nf3 {[%emt 0:00:07]} a6 {[%emt 0:00:22]} 4. d4 {[%emt 0:00:06]} cxd4 {[%emt 0:00:30]} 5. Nxd4 {[%emt 0:00:30]} Nf6 {[%emt 0:00:30][%cal Bg8f6,Bf6d7,Bd7c5,Bc5e6,Be6d4,Bd4f3][%mdl 32]} 6. Nb3 {[%emt 0:00:00]} g6 {[%emt 0:00:00]} 7. Be2 {[%emt 0:00:00]} Bg7 {[%emt 0:00:02]} 8. Be3 {[%emt 0:00:00][%cal Oe4e5]} O-O {[%emt 0:05:11]} 9. g4 {[%emt 0:01:56][%cal Bg2g4,Bg4g5][%mdl 32]} Nc6 {[%emt 0:02:57]} 10. g5 {[%emt 0:00:53]} Nd7 {[%emt 0:00:06]} 11. h4 {[%emt 0:00:16]} b5 {[%emt 0:00:21]} 12. Nd4 {[%emt 0:06:03]} (12. Qd2 $142) 12... Bb7 $11 {[%emt 0:04:03]} 13. Nxc6 {[%emt 0:00:50]} Bxc6 {[%emt 0:00:02]} 14. Bd4 {[%emt 0:00:09]} e5 {[%emt 0:12:37]} ({Black should try} 14... Be5 $15) 15. Be3 {[%emt 0:00:22]} Nc5 {[%emt 0:00:13]} 16. Bf3 {[%emt 0:09:12]} Ne6 {[%emt 0:00:50]} 17. Nd5 {[%emt 0:00:29]} Nd4 {[%emt 1:10:27]} 18. c3 {[%emt 1:15:25]} Nxf3+ {[%emt 0:00:00]} 19. Qxf3 {[%emt 0:00:00]} Bxd5 {[%emt 0:00:00]} 20. exd5 {[%emt 0:00:00]} Rc8 {[%emt 0:00:00]} 21. h5 {[%emt 0:00:00]} Re8 {[%emt 0:00:00]} 22. hxg6 {[%emt 0:00:00]} hxg6 {[%emt 0:00:00]} 23. Rh4 $1 {[%emt 0:00:00]} Qa5 {[%emt 0:00:00][%cal Oe5e4]} 24. Ke2 {[%emt 0:00:00][%cal Oh4h7,Be1e2,Be2d2,Bd2d3][%mdl 32]} Rc4 {[%emt 0:00:00] [#]} (24... b4 $11 25. Rxb4 e4) 25. Rh7 $3 $16 {[%emt 0:00:00][%mdl 512]} Kxh7 {[%emt 0:00:00]} 26. Qxf7 {[%emt 0:00:00]} Rh4 {[%emt 0:00:00] Inhibits Rh1.} 27. Qxe8 {[%emt 0:00:00]} Qa4 {[%emt 0:00:00]} 28. Kd2 {[%emt 0:00:00]} Qc4 {[%emt 0:00:00][%cal Oe5e4] [#]} 29. Qc6 $1 {[%emt 0:00:00]} Qxc6 {[%emt 0:00:00]} 30. dxc6 {[%emt 0:00:00][%mdl 4096] Endgame. KRB-KRB} Rc4 {[%emt 0:00:00] [#]} 31. a4 $1 {[%emt 0:00:00][%mdl 512]} bxa4 {[%emt 0:00:00] [#]} 32. Rxa4 $3 {[%emt 0:00:00][%mdl 512]} Rxc6 {[%emt 0:00:00]} (32... Rxa4 $2 {loses.} 33. b3 Ra2+ 34. Kd1 $18) 33. Kd3 {[%emt 0:00:00] And now Ke4 would win. White is more active.} d5 {[%emt 0:00:00]} 34. Ra5 {[%emt 0:00:00]} e4+ {[%emt 0:00:00] [#]} (34... d4 $16) 35. Kd2 $1 $18 {[%emt 0:00:00]} Rd6 {[%emt 0:00:00]} 36. Bc5 {[%emt 0:00:00]} Re6 {[%emt 0:00:00]} 37. Ke3 {[%emt 0:00:00] Bd4 is the strong threat.} Re5 {[%emt 0:00:00]} 38. Bd4 {[%emt 0:00:00]} Rxg5 {[%emt 0:00:00]} ({Better is} 38... Rf5) 39. c4 {[%emt 0:00:00]} (39. Rxa6 $16 {Black must now prevent Ra7.} Bxd4+ 40. Kxd4) 39... Bh6 {[%emt 0:00:00]} (39... Bxd4+ $5 40. Kxd4 e3 41. fxe3 (41. Kxe3 $2 {perishes.} d4+ 42. Kxd4 Rxa5 $19) 41... Rg4+ 42. e4 (42. Kxd5 $2 {is the wrong capture.} Rg5+ 43. Kd4 Rxa5 $19) 42... dxc4 $11) 40. Rxa6 {[%emt 0:00:00]} Rg3+ {[%emt 0:00:00]} 41. Ke2 {[%emt 0:00:00]} Rd3 {[%emt 0:00:00]} 42. Ra7+ {[%emt 0:00:00]} Kg8 {[%emt 0:00:00] The position is equal.} 43. Be3 {[%emt 0:00:00]} Bxe3 {[%emt 0:00:00]} 44. fxe3 {[%emt 0:00:00] c5 would now be deadly.} dxc4 {[%emt 0:00:00]} 45. Rc7 {[%emt 0:00:00] White really could win this.   Weighted Error Value: White=0.09 (flawless) /Black=0.12 (very precise) .  Missed win:     	White=1     	---        Mistake:       	White=2     	Black=4      Inaccurate:     	White=1     	Black=3      OK:         	White=14    	Black=18     Best:        	White=2     	Black=9      Strong:       	White=3     	---        Brilliant:      	White=1     	---} 1/2-1/2

[Event "Presidents Day IM-Norm 2024"]
[Site "Santa Clara"]
[Date "2024.02.19"]
[Round "8.3"]
[White "Bansal, Advay"]
[Black "Stevens, Adam B"]
[Result "1-0"]
[ECO "B90"]
[WhiteElo "2253"]
[BlackElo "1878"]
[Annotator "TA"]
[PlyCount "76"]
[EventDate "2024.02.13"]
[EventType "tourn"]
[EventCountry "USA"]
[SourceTitle "playchess.com"]
[Source "ChessBase"]
[SourceQuality "1"]
[TimeControl "5400+30"]

{[%evp 15,76,0,14,12,19,10,29,16,25,17,12,14,11,13,11,12,13,14,20,4,19,23,27,25,27,28,34,42,43,31,84,70,60,32,92,82,120,108,120,114,119,92,138,137,218,182,466,423,562,583,589,641,662,643,769,768,737,744,29988,29989,29989,29990,2237]} 1. e4 {[%emt 0:00:01]} c5 {[%emt 0:00:04]} 2. Nf3 {[%emt 0:00:12]} d6 {[%emt 0:00:05]} 3. d4 {[%emt 0:00:09]} cxd4 {[%emt 0:00:04]} 4. Nxd4 {[%emt 0:00:08]} Nf6 {[%emt 0:00:04]} 5. Nc3 {[%emt 0:00:07]} a6 {[%emt 0:00:04]} 6. Bd3 {[%emt 0:00:05]} e5 {[%emt 0:00:16]} 7. Nde2 {[%emt 0:00:07]} Be7 {[%emt 0:00:09]} 8. O-O {[%emt 0:00:20]} O-O {[%emt 0:00:05]} 9. Ng3 {[%emt 0:00:06]} Be6 {[%emt 0:00:17] [#]} 10. Nd5 $1 {[%emt 0:00:09]} Bxd5 {[%emt 0:00:14]} (10... Nbd7 11. c4) 11. exd5 {[%emt 0:00:07] Weiß hat minimalen Vorteil.} g6 {[%emt 0:00:04][%cal Ob8d7]} 12. c4 {[%emt 0:00:08]} Nbd7 {[%emt 0:00:02]} 13. Kh1 {[%emt 0:00:11]} Ne8 {[%emt 0:09:18]} 14. Bh6 {[%emt 0:10:36]} Ng7 $1 {[%emt 0:00:10]} 15. Qd2 {[%emt 0:00:15]} f5 {[%emt 0:04:34][%cal Bf7f5,Bf5f4][%mdl 32]} 16. f3 {[%emt 0:00:25]} Nc5 {[%emt 0:01:12]} 17. Bc2 {[%emt 0:01:26]} a5 {[%emt 0:00:09]} 18. b3 {[%emt 0:06:26][%cal Bb2b3,Bb3b4][%mdl 32]} f4 {[%emt 0:03:28]} 19. Ne2 {[%emt 0:06:42]} Rf7 {[%emt 0:05:54]} 20. Bxg7 {[%emt 0:06:24]} Rxg7 {[%emt 0:00:14]} 21. a3 {[%emt 0:04:37]} Kh8 {[%emt 0:02:48]} 22. Nc3 {[%emt 0:03:56]} g5 {[%emt 0:02:16]} (22... Nd7 $14) 23. b4 $16 {[%emt 0:02:26] Schwarz ist schwach auf den weissen Feldern} Nd7 {[%emt 0:00:35]} 24. Nb5 {[%emt 0:16:01]} b6 {[%emt 0:03:02]} (24... Nf6 $14) 25. Bf5 {[%emt 0:05:14]} h5 {[%emt 0:06:26]} 26. Rac1 {[%emt 0:05:03] Weiß hat aktiveres Spiel.} Bf8 {[%emt 1:01:56]} 27. g4 {[%emt 0:02:07]} fxg3 {[%emt 0:00:00]} 28. hxg3 {[%emt 0:00:06][%cal Bh2g3,Bg3g4][%mdl 32]} Qf6 {[%emt 0:00:00]} (28... Nf6 $142 29. Kg2 h4) 29. g4 {[%emt 0:02:37]} Nb8 {[%emt 0:00:00]} (29... Rf7 $16 30. Nc7 Rb8) 30. Nc3 $18 {[%emt 0:06:26] [#] Und Kg2 würde nun gewinnen.} h4 $2 {[%emt 0:00:00]} (30... Qh6 31. Kg2 axb4) 31. Ne4 {[%emt 0:00:10]} Qd8 {[%emt 0:00:00]} 32. c5 {[%emt 0:00:47]} bxc5 {[%emt 0:00:00]} 33. bxc5 {[%emt 0:00:07]} dxc5 {[%emt 0:00:00]} 34. Nxc5 {[%emt 0:00:32]} Bxc5 {[%emt 0:00:00]} 35. Rxc5 {[%emt 0:00:43][%cal Bc1c5,Bc5c6,Bc6h6][%mdl 32] Droht stark Rc8.} Nd7 {[%emt 0:00:00]} 36. Rc6 {[%emt 0:00:22]} Qb8 {[%emt 0:00:00]} 37. Rh6+ {[%emt 0:00:30]} Kg8 {[%emt 0:00:00]} 38. Be6+ {[%emt 0:00:09]} Kf8 {[%emt 0:00:00] Gewichteter Fehlerwert: Weiß=0.04 (makellos) /Schwarz=0.55.  Fehler:       	---       	Schwarz=5     Ungenau:       	Weiß=1     	Schwarz=2     OK:         	Weiß=13    	Schwarz=2     Bester:       	Weiß=1     	---        Stark:        	---       	Schwarz=1} 1-0

[Event "Presidents Day IM-Norm 2024"]
[Site "Santa Clara"]
[Date "2024.02.19"]
[Round "8.4"]
[White "Raja Harshit"]
[Black "Liu, Patrick"]
[Result "1-0"]
[ECO "B40"]
[WhiteElo "2508"]
[BlackElo "2130"]
[Annotator "TA"]
[PlyCount "55"]
[EventDate "2024.02.13"]
[EventType "tourn"]
[EventCountry "USA"]
[SourceTitle "playchess.com"]
[Source "ChessBase"]
[SourceQuality "1"]
[TimeControl "5400+30"]

{[%evp 9,54,8,10,0,19,23,60,77,81,75,96,95,155,136,173,173,169,177,200,211,478,498,440,496,473,494,487,504,504,498,481,460,494,461,484,470,564,563,606,626,604,593,863,838,29998,29999,29999]} 1. e4 {[%emt 0:25:30]} c5 {[%emt 0:00:02]} 2. Nf3 {[%emt 0:00:08]} e6 {[%emt 0:00:05]} 3. b3 {[%emt 0:00:08]} b6 {[%emt 0:00:06]} 4. Bb2 {[%emt 0:00:18]} Bb7 {[%emt 0:03:39]} 5. Nc3 {[%emt 0:00:10]} Nf6 {[%emt 0:04:31]} 6. Qe2 {[%emt 0:11:32]} d6 {[%emt 0:03:00]} 7. d4 {[%emt 0:01:20]} cxd4 {[%emt 0:01:38]} 8. Nxd4 {[%emt 0:00:09] White is slightly better.} a6 {[%emt 0:02:32] [#]} 9. O-O-O $1 {[%emt 0:02:43] White is more active.} Qc7 {[%emt 0:04:11]} 10. g4 {[%emt 0:01:18]} b5 {[%emt 0:06:33]} (10... Nc6 $142) 11. Bg2 {[%emt 0:02:49]} Nc6 {[%emt 0:07:20] [#]} 12. Nxc6 {[%emt 0:02:37]} Qxc6 {[%emt 0:03:49] [#]} 13. Nd5 $1 {[%emt 0:00:15][%mdl 512]} Nd7 {[%emt 0:10:35][%cal Oc6c5]} (13... Qc5 14. Nxf6+) 14. e5 {[%emt 0:01:19][%cal Be4e5,Be5d6][%mdl 32]} exd5 $2 {[%emt 0:01:23]} (14... Qc8 {was called for.}) 15. exd6+ $18 {[%emt 0:02:03]} ({Resist} 15. Bxd5 Qxd5 16. Rxd5 (16. exd6+ $2 {perishes.} Qe6 $19) 16... Bxd5 17. exd6+ Be6 $18) 15... Kd8 {[%emt 0:00:02][%cal Be8d8,Bd8c7,Bc7b6,Bb6a5][%mdl 32]} 16. Bxd5 {[%emt 0:00:17]} Qxd5 {[%emt 0:00:31]} 17. Rxd5 {[%emt 0:00:04]} Bxd5 {[%emt 0:00:02]} 18. Re1 {[%emt 0:02:30][%csl Ge1][%cal Re2e8]} Bxd6 {[%emt 0:04:43][%cal Od5c6]} 19. Qd2 {[%emt 0:00:46]} Nb6 {[%emt 0:01:24][%cal Od8c7]} 20. Bd4 {[%emt 0:00:15]} Kc7 {[%emt 0:44:24]} 21. Bxb6+ {[%emt 0:00:34]} ({Less strong is} 21. Bxg7 Rhe8 $16) 21... Kxb6 {[%emt 0:00:30]} 22. Qxd5 {[%emt 0:00:08]} Rad8 {[%emt 0:00:00]} 23. Qxf7 {[%emt 0:01:24]} Rhf8 {[%emt 0:00:00]} 24. Qxg7 {[%emt 0:02:25]} Rfe8 {[%emt 0:00:00] ( -> ...Ba3+)} 25. Qd4+ {[%emt 0:05:33]} Bc5 {[%emt 0:00:00] [#]} 26. Re6+ $3 {[%emt 0:00:53][%mdl 512]} Ka5 {[%emt 0:00:00]} (26... Rxe6 27. Qxd8+) 27. Qc3+ {[%emt 0:00:16]} Bb4 {[%emt 0:00:00]} 28. Qc7# {[%emt 0:00:07] Black did not feel at home in the position after the opening.   Weighted Error Value: White=0.03 (flawless) /Black=0.73.  Mistake:       	---       	Black=2      Inaccurate:     	---       	Black=2      OK:         	White=8     	Black=3      Best:        	White=5     	Black=1      Strong:       	White=1     	---} 1-0